[Event "*** Titled Tuesday Blitz"]
[Site "Chess.com"]
[Date "2021.02.02"]
[Round "9"]
[White "kekic76"]
[Black "kleopl"]
[Result "1-0"]
[WhiteElo "2400"]
[BlackElo "2499"]
[TimeControl "180+1"]
[EndTime "11:47:08 PST"]
[Termination "kekic76 won by resignation"]

1. e4 {[%clk 0:03:00.9]} 1... c6 {[%clk 0:02:59.6]} 2. d4 {[%clk 0:03:00.2]}
2... d5 {[%clk 0:03:00.5]} 3. Nc3 {[%clk 0:02:59.7]} 3... a6 {[%clk 0:02:59.9]}
4. h3 {[%clk 0:02:53.8]} 4... dxe4 {[%clk 0:02:58.6]} 5. Nxe4 {[%clk 0:02:53.3]}
5... Bf5 {[%clk 0:02:59.2]} 6. Ng3 {[%clk 0:02:52.3]} 6... Bg6 {[%clk
0:02:59.6]} 7. N1e2 {[%clk 0:02:51.9]} 7... e5 {[%clk 0:02:53.3]} 8. Be3 {[%clk
0:02:40.1]} 8... Nd7 {[%clk 0:02:49.4]} 9. dxe5 {[%clk 0:02:37]} 9... Nxe5
{[%clk 0:02:46.5]} 10. Nf4 {[%clk 0:02:24.1]} 10... Nf6 {[%clk 0:02:35]} 11.
Nxg6 {[%clk 0:02:21.8]} 11... hxg6 {[%clk 0:02:35.9]} 12. Be2 {[%clk 0:02:13.3]}
12... Nd5 {[%clk 0:02:25.2]} 13. Bd2 {[%clk 0:02:10]} 13... Bb4 {[%clk
0:02:14.6]} 14. c3 {[%clk 0:02:07.6]} 14... Bc5 {[%clk 0:02:13.8]} 15. O-O
{[%clk 0:02:05.7]} 15... Qh4 {[%clk 0:02:12.1]} 16. Nh1 {[%clk 0:01:53.5]} 16...
Nf4 {[%clk 0:02:03.6]} 17. Bxf4 {[%clk 0:01:45.1]} 17... Qxf4 {[%clk 0:02:04.5]}
18. Qc1 {[%clk 0:01:34.8]} 18... Qf6 {[%clk 0:01:56.3]} 19. Ng3 {[%clk
0:01:29.2]} 19... Qh4 {[%clk 0:01:54.7]} 20. Nh1 {[%clk 0:01:22.7]} 20... O-O-O
{[%clk 0:01:50.8]} 21. Qc2 {[%clk 0:01:22.7]} 21... f5 {[%clk 0:01:34.3]} 22.
Rad1 {[%clk 0:01:20.1]} 22... Rde8 {[%clk 0:01:26.4]} 23. Rd2 {[%clk 0:00:47.5]}
23... f4 {[%clk 0:01:25.1]} 24. Qd1 {[%clk 0:00:47.7]} 24... g5 {[%clk
0:01:10.2]} 25. b4 {[%clk 0:00:40.4]} 25... Bb6 {[%clk 0:01:02.9]} 26. a4 {[%clk
0:00:39.7]} 26... Kb8 {[%clk 0:00:57.6]} 27. b5 {[%clk 0:00:38.2]} 27... axb5
{[%clk 0:00:49.6]} 28. axb5 {[%clk 0:00:38.1]} 28... cxb5 {[%clk 0:00:46.7]} 29.
Rd5 {[%clk 0:00:35]} 29... g4 {[%clk 0:00:34.5]} 30. Bxg4 {[%clk 0:00:30.4]}
30... Nxg4 {[%clk 0:00:33.7]} 31. Qxg4 {[%clk 0:00:30.3]} 31... Qxg4 {[%clk
0:00:33.7]} 32. hxg4 {[%clk 0:00:30.8]} 32... Re2 {[%clk 0:00:30]} 33. Rxb5
{[%clk 0:00:28.7]} 33... Kc7 {[%clk 0:00:30.1]} 34. Rf5 {[%clk 0:00:27.7]} 34...
Rhe8 {[%clk 0:00:26.8]} 35. Rxf4 {[%clk 0:00:25.5]} 35... R8e7 {[%clk
0:00:26.1]} 36. Ng3 {[%clk 0:00:23.5]} 36... Rc2 {[%clk 0:00:24.9]} 37. Nf5
{[%clk 0:00:22.9]} 37... Rf7 {[%clk 0:00:22.4]} 38. Rc4+ {[%clk 0:00:22.8]}
38... Kb8 {[%clk 0:00:22.6]} 39. Rb1 {[%clk 0:00:22.6]} 39... Bxf2+ {[%clk
0:00:21.7]} 40. Kf1 {[%clk 0:00:19.2]} 40... g6 {[%clk 0:00:21.4]} 41. Nd6
{[%clk 0:00:13.2]} 41... Rd7 {[%clk 0:00:19.9]} 42. Rc8+ {[%clk 0:00:12.9]}
42... Ka7 {[%clk 0:00:20.1]} 43. Ra1+ {[%clk 0:00:13.4]} 43... Kb6 {[%clk
0:00:20.3]} 44. Nc4+ {[%clk 0:00:13]} 44... Kb5 {[%clk 0:00:19.5]} 45. Rb1+
{[%clk 0:00:13.2]} 45... Ka6 {[%clk 0:00:17.4]} 46. Ra8+ {[%clk 0:00:13.4]}
46... Ba7 {[%clk 0:00:17.4]} 47. Ra1+ {[%clk 0:00:13.1]} 47... Kb5 {[%clk
0:00:17.3]} 48. Na3+ {[%clk 0:00:12.8]} 48... Kc6 {[%clk 0:00:17.5]} 49. Nxc2
{[%clk 0:00:12.8]} 49... Rf7+ {[%clk 0:00:17.7]} 50. Ke1 {[%clk 0:00:11.9]}
50... Bc5 {[%clk 0:00:17.4]} 51. Nd4+ {[%clk 0:00:11.9]} 51... Kd5 {[%clk
0:00:17.7]} 52. Rd8+ {[%clk 0:00:11.5]} 52... Kc4 {[%clk 0:00:17.8]} 53. Rc8
{[%clk 0:00:11.7]} 53... b6 {[%clk 0:00:17.6]} 54. Ra4+ {[%clk 0:00:10.5]} 54...
Kxc3 {[%clk 0:00:17.7]} 55. Ne6 {[%clk 0:00:07.8]} 55... Re7 {[%clk 0:00:16.9]}
56. Rc6 {[%clk 0:00:07.5]} 56... Kb3 {[%clk 0:00:16.4]} 57. Re4 {[%clk
0:00:06.6]} 57... Bb4+ {[%clk 0:00:16.3]} 58. Ke2 {[%clk 0:00:05.7]} 58... b5
{[%clk 0:00:16.7]} 59. Nd4+ {[%clk 0:00:05.3]} 59... Ka3 {[%clk 0:00:14.9]} 60.
Rxe7 {[%clk 0:00:06.2]} 60... Bxe7 {[%clk 0:00:15]} 61. Nxb5+ {[%clk 0:00:06.6]}
1-0

[Event "*** Titled Tuesday Blitz"]
[Site "Chess.com"]
[Date "2021.02.02"]
[Round "9"]
[White "scarabee43"]
[Black "PowerThinking2650"]
[Result "1-0"]
[WhiteElo "2574"]
[BlackElo "2378"]
[TimeControl "180+1"]
[EndTime "11:47:12 PST"]
[Termination "scarabee43 won on time"]

1. d4 {[%clk 0:03:00.9]} 1... Nf6 {[%clk 0:02:56.8]} 2. c4 {[%clk 0:03:01.3]}
2... g6 {[%clk 0:02:57.2]} 3. Nc3 {[%clk 0:03:01]} 3... Bg7 {[%clk 0:02:57.7]}
4. e4 {[%clk 0:03:01.3]} 4... d6 {[%clk 0:02:58.2]} 5. Nf3 {[%clk 0:03:01.6]}
5... O-O {[%clk 0:02:58.7]} 6. Be2 {[%clk 0:03:01.6]} 6... e5 {[%clk 0:02:59.1]}
7. d5 {[%clk 0:03:01.7]} 7... a5 {[%clk 0:02:58.4]} 8. Bg5 {[%clk 0:03:01]} 8...
h6 {[%clk 0:02:57.5]} 9. Bh4 {[%clk 0:03:01.6]} 9... Na6 {[%clk 0:02:55.5]} 10.
O-O {[%clk 0:03:01.9]} 10... Qe8 {[%clk 0:02:54.7]} 11. Nd2 {[%clk 0:03:01.6]}
11... Nh7 {[%clk 0:02:53.9]} 12. a3 {[%clk 0:02:56.5]} 12... Bd7 {[%clk
0:02:53.5]} 13. b3 {[%clk 0:02:52.1]} 13... h5 {[%clk 0:02:53.4]} 14. f3 {[%clk
0:02:52.2]} 14... Bh6 {[%clk 0:02:53.8]} 15. Rb1 {[%clk 0:02:50.8]} 15... Be3+
{[%clk 0:02:53.4]} 16. Kh1 {[%clk 0:02:51.1]} 16... Bc5 {[%clk 0:02:53.3]} 17.
Qc1 {[%clk 0:02:51.3]} 17... Qb8 {[%clk 0:02:46.6]} 18. Na2 {[%clk 0:02:45.2]}
18... Qa7 {[%clk 0:02:41.4]} 19. b4 {[%clk 0:02:44.6]} 19... axb4 {[%clk
0:02:39.4]} 20. axb4 {[%clk 0:02:44.8]} 20... Be3 {[%clk 0:02:38.3]} 21. Qc2
{[%clk 0:02:34.3]} 21... f5 {[%clk 0:02:00.3]} 22. Nc3 {[%clk 0:02:14.9]} 22...
g5 {[%clk 0:01:37.9]} 23. Be1 {[%clk 0:02:13.4]} 23... f4 {[%clk 0:01:38.2]} 24.
Nb5 {[%clk 0:01:51.9]} 24... Qb8 {[%clk 0:01:36.4]} 25. c5 {[%clk 0:01:46.3]}
25... dxc5 {[%clk 0:01:32.5]} 26. bxc5 {[%clk 0:01:37.9]} 26... Nxc5 {[%clk
0:01:30.3]} 27. Nc4 {[%clk 0:01:36.8]} 27... Bxb5 {[%clk 0:01:15.9]} 28. Rxb5
{[%clk 0:01:35.1]} 28... Bd4 {[%clk 0:01:13]} 29. Nxe5 {[%clk 0:01:23]} 29...
Bxe5 {[%clk 0:00:59.7]} 30. Rxc5 {[%clk 0:01:20.4]} 30... Nf6 {[%clk 0:00:56]}
31. Bc3 {[%clk 0:01:14.5]} 31... Nd7 {[%clk 0:00:37.7]} 32. Bxe5 {[%clk
0:01:09.1]} 32... Nxe5 {[%clk 0:00:38.6]} 33. Rxc7 {[%clk 0:01:09]} 33... Rc8
{[%clk 0:00:34.2]} 34. Rxc8+ {[%clk 0:01:06.3]} 34... Qxc8 {[%clk 0:00:34.1]}
35. Qb2 {[%clk 0:01:06]} 35... Qc7 {[%clk 0:00:29.5]} 36. Rc1 {[%clk 0:01:04.2]}
36... Ra2 {[%clk 0:00:25.3]} 37. Qb1 {[%clk 0:01:00.8]} 37... Qa5 {[%clk
0:00:14.9]} 38. Qxb7 {[%clk 0:00:46.9]} 38... Ra1 {[%clk 0:00:14.5]} 39. Qc8+
{[%clk 0:00:20.3]} 39... Kg7 {[%clk 0:00:11.3]} 40. h3 {[%clk 0:00:17.3]} 40...
Qa3 {[%clk 0:00:06.1]} 41. Rxa1 {[%clk 0:00:16.4]} 41... Qxa1+ {[%clk 0:00:07]}
42. Kh2 {[%clk 0:00:17]} 42... Qe1 {[%clk 0:00:06.4]} 43. Qc7+ {[%clk
0:00:13.6]} 43... Nf7 {[%clk 0:00:06.4]} 44. Bc4 {[%clk 0:00:12.1]} 44... Qg3+
{[%clk 0:00:05.6]} 45. Kg1 {[%clk 0:00:12.1]} 45... Qe1+ {[%clk 0:00:05.7]} 46.
Bf1 {[%clk 0:00:12.1]} 46... Qe3+ {[%clk 0:00:04]} 47. Kh1 {[%clk 0:00:12.3]}
47... Qf2 {[%clk 0:00:04.6]} 48. Qc3+ {[%clk 0:00:11.4]} 48... Kg6 {[%clk
0:00:04.3]} 49. Bd3 {[%clk 0:00:10.2]} 49... g4 {[%clk 0:00:02.8]} 50. e5+
{[%clk 0:00:10.4]} 50... Kg5 {[%clk 0:00:03.3]} 51. e6 {[%clk 0:00:08.4]} 51...
gxh3 {[%clk 0:00:02.8]} 52. Qg7+ {[%clk 0:00:08.9]} 52... Kh4 {[%clk 0:00:02.9]}
53. exf7 {[%clk 0:00:05]} 53... Qe1+ {[%clk 0:00:01.7]} 54. Kh2 {[%clk
0:00:05.2]} 54... Qg3+ {[%clk 0:00:02]} 55. Qxg3+ {[%clk 0:00:04.8]} 55... fxg3+
{[%clk 0:00:02.9]} 56. Kh1 {[%clk 0:00:05.1]} 56... hxg2+ {[%clk 0:00:02.9]} 57.
Kxg2 {[%clk 0:00:05.3]} 1-0

[Event "*** Titled Tuesday Blitz"]
[Site "Chess.com"]
[Date "2021.02.02"]
[Round "9"]
[White "vovachesss"]
[Black "SergeiAza"]
[Result "1/2-1/2"]
[WhiteElo "2748"]
[BlackElo "2786"]
[TimeControl "180+1"]
[EndTime "11:47:13 PST"]
[Termination "Game drawn - insufficient material"]

1. e4 {[%clk 0:02:58.4]} 1... c5 {[%clk 0:03:00.1]} 2. c3 {[%clk 0:02:54]} 2...
Nf6 {[%clk 0:02:57.3]} 3. e5 {[%clk 0:02:54.1]} 3... Nd5 {[%clk 0:02:57.2]} 4.
Nf3 {[%clk 0:02:55]} 4... Nc6 {[%clk 0:02:54.9]} 5. Bc4 {[%clk 0:02:50.5]} 5...
Nb6 {[%clk 0:02:54.5]} 6. Bb3 {[%clk 0:02:51.1]} 6... c4 {[%clk 0:02:54.3]} 7.
Bc2 {[%clk 0:02:50.3]} 7... d6 {[%clk 0:02:52.7]} 8. exd6 {[%clk 0:02:41.4]}
8... Qxd6 {[%clk 0:02:52.8]} 9. O-O {[%clk 0:02:42]} 9... Bg4 {[%clk 0:02:52.5]}
10. Re1 {[%clk 0:02:37.7]} 10... O-O-O {[%clk 0:02:29.8]} 11. Qe2 {[%clk
0:02:27]} 11... e5 {[%clk 0:02:01.6]} 12. Na3 {[%clk 0:02:24.2]} 12... Kb8
{[%clk 0:01:39.2]} 13. Nxc4 {[%clk 0:02:02.8]} 13... Nxc4 {[%clk 0:01:36.9]} 14.
Qxc4 {[%clk 0:02:03.7]} 14... Bxf3 {[%clk 0:01:35.4]} 15. gxf3 {[%clk
0:02:04.6]} 15... Be7 {[%clk 0:01:26.2]} 16. b4 {[%clk 0:01:54.9]} 16... Rhf8
{[%clk 0:01:19.5]} 17. b5 {[%clk 0:01:36.5]} 17... Na5 {[%clk 0:01:17.9]} 18.
Qe4 {[%clk 0:01:35.1]} 18... Qc7 {[%clk 0:00:56.1]} 19. f4 {[%clk 0:00:54.4]}
19... f5 {[%clk 0:00:52]} 20. Qxe5 {[%clk 0:00:49.8]} 20... Bd6 {[%clk
0:00:52.3]} 21. Qe6 {[%clk 0:00:39.8]} 21... Rf6 {[%clk 0:00:49.1]} 22. Qe2
{[%clk 0:00:26.7]} 22... Bxf4 {[%clk 0:00:48.9]} 23. d4 {[%clk 0:00:22.2]} 23...
Rg6+ {[%clk 0:00:48.4]} 24. Kh1 {[%clk 0:00:20.9]} 24... Bxh2 {[%clk 0:00:34.8]}
25. Bxf5 {[%clk 0:00:19]} 25... Rf6 {[%clk 0:00:30.8]} 26. Bh3 {[%clk
0:00:15.2]} 26... Bd6 {[%clk 0:00:26.7]} 27. Bg5 {[%clk 0:00:13.6]} 27... Qxc3
{[%clk 0:00:26.4]} 28. Qe3 {[%clk 0:00:10.5]} 28... Qc4 {[%clk 0:00:09.1]} 29.
Bxf6 {[%clk 0:00:08.6]} 29... gxf6 {[%clk 0:00:10]} 30. Rac1 {[%clk 0:00:08]}
30... Qxb5 {[%clk 0:00:09.4]} 31. Qe6 {[%clk 0:00:07.1]} 31... Nc6 {[%clk
0:00:07.6]} 32. d5 {[%clk 0:00:06.4]} 32... Qd3 {[%clk 0:00:04.8]} 33. dxc6
{[%clk 0:00:05.1]} 33... Qf3+ {[%clk 0:00:04.8]} 34. Bg2 {[%clk 0:00:04.1]}
34... Qxf2 {[%clk 0:00:03.4]} 35. c7+ {[%clk 0:00:02.1]} 35... Bxc7 {[%clk
0:00:03.6]} 36. Rxc7 {[%clk 0:00:03]} 36... Qh4+ {[%clk 0:00:03.3]} 37. Kg1
{[%clk 0:00:03.1]} 37... Qd4+ {[%clk 0:00:02.9]} 38. Qe3 {[%clk 0:00:03.8]}
38... Kxc7 {[%clk 0:00:02.9]} 39. Rc1+ {[%clk 0:00:03]} 39... Kb8 {[%clk
0:00:03]} 40. Qxd4 {[%clk 0:00:03.3]} 40... Rxd4 {[%clk 0:00:03.9]} 41. Bh3
{[%clk 0:00:03.7]} 41... b5 {[%clk 0:00:04.1]} 42. Bf1 {[%clk 0:00:02.8]} 42...
a6 {[%clk 0:00:03.9]} 43. Rc6 {[%clk 0:00:03.2]} 43... Ka7 {[%clk 0:00:03.2]}
44. Rxf6 {[%clk 0:00:03.4]} 44... Rd2 {[%clk 0:00:03.8]} 45. Rf2 {[%clk
0:00:03.4]} 45... Rxf2 {[%clk 0:00:03.3]} 46. Kxf2 {[%clk 0:00:04.3]} 46... Kb6
{[%clk 0:00:03.8]} 47. Ke3 {[%clk 0:00:04.6]} 47... Kc5 {[%clk 0:00:04.7]} 48.
Kd3 {[%clk 0:00:04.8]} 48... Kb4 {[%clk 0:00:05.4]} 49. Kc2 {[%clk 0:00:05.2]}
49... Ka3 {[%clk 0:00:05.9]} 50. Kb1 {[%clk 0:00:05.7]} 50... h5 {[%clk
0:00:06.4]} 51. Bh3 {[%clk 0:00:05.8]} 51... h4 {[%clk 0:00:06.7]} 52. Bd7
{[%clk 0:00:05.6]} 52... b4 {[%clk 0:00:06.5]} 53. Be6 {[%clk 0:00:04.8]} 53...
a5 {[%clk 0:00:06.5]} 54. Ka1 {[%clk 0:00:04.7]} 54... a4 {[%clk 0:00:06.7]} 55.
Kb1 {[%clk 0:00:05.2]} 55... b3 {[%clk 0:00:07.1]} 56. axb3 {[%clk 0:00:06]}
56... axb3 {[%clk 0:00:07.6]} 57. Bf5 {[%clk 0:00:06.1]} 57... b2 {[%clk
0:00:07.9]} 58. Bh3 {[%clk 0:00:06.5]} 58... Kb3 {[%clk 0:00:08.4]} 59. Bg4
{[%clk 0:00:07.4]} 59... Kc3 {[%clk 0:00:09.3]} 60. Bh3 {[%clk 0:00:08]} 60...
Kd4 {[%clk 0:00:09.7]} 61. Kxb2 {[%clk 0:00:08.6]} 61... Ke3 {[%clk 0:00:10.6]}
62. Bd7 {[%clk 0:00:08.8]} 62... Kf3 {[%clk 0:00:11.5]} 63. Bc8 {[%clk
0:00:09.3]} 63... Kg3 {[%clk 0:00:12.4]} 64. Bd7 {[%clk 0:00:09.7]} 64... h3
{[%clk 0:00:13.3]} 65. Bxh3 {[%clk 0:00:10.1]} 1/2-1/2

[Event "*** Titled Tuesday Blitz"]
[Site "Chess.com"]
[Date "2021.02.02"]
[Round "9"]
[White "Aradej"]
[Black "1977Ivan"]
[Result "1-0"]
[WhiteElo "2553"]
[BlackElo "2688"]
[TimeControl "180+1"]
[EndTime "11:47:13 PST"]
[Termination "Aradej won by resignation"]

1. d4 {[%clk 0:03:00.9]} 1... Nf6 {[%clk 0:02:59.8]} 2. Nf3 {[%clk 0:03:00.7]}
2... g6 {[%clk 0:03:00]} 3. e3 {[%clk 0:03:00.6]} 3... Bg7 {[%clk 0:02:59.6]} 4.
Be2 {[%clk 0:03:01.1]} 4... d6 {[%clk 0:02:59.6]} 5. O-O {[%clk 0:03:01]} 5...
O-O {[%clk 0:03:00.1]} 6. c4 {[%clk 0:03:01.2]} 6... e5 {[%clk 0:02:57.9]} 7.
Nc3 {[%clk 0:02:58.7]} 7... Qe7 {[%clk 0:02:56.3]} 8. b3 {[%clk 0:02:54.4]} 8...
Re8 {[%clk 0:02:55.5]} 9. Bb2 {[%clk 0:02:50.3]} 9... c6 {[%clk 0:02:51.6]} 10.
Ba3 {[%clk 0:02:46.5]} 10... e4 {[%clk 0:02:50.3]} 11. Nd2 {[%clk 0:02:45.9]}
11... h5 {[%clk 0:02:50.7]} 12. b4 {[%clk 0:02:45.6]} 12... a6 {[%clk
0:02:48.6]} 13. Rb1 {[%clk 0:02:30.2]} 13... Bf5 {[%clk 0:02:47.4]} 14. d5
{[%clk 0:02:17.1]} 14... cxd5 {[%clk 0:02:46.8]} 15. Nxd5 {[%clk 0:02:17.1]}
15... Nxd5 {[%clk 0:02:45.6]} 16. cxd5 {[%clk 0:02:17.6]} 16... Nd7 {[%clk
0:02:44.4]} 17. Bb2 {[%clk 0:02:15.6]} 17... Bxb2 {[%clk 0:02:40.9]} 18. Rxb2
{[%clk 0:02:15.5]} 18... Rac8 {[%clk 0:02:40]} 19. Nc4 {[%clk 0:02:13.6]} 19...
Ne5 {[%clk 0:02:31.3]} 20. Rc2 {[%clk 0:01:57.1]} 20... Nd3 {[%clk 0:02:16.8]}
21. Nb6 {[%clk 0:01:44.9]} 21... Rxc2 {[%clk 0:02:15]} 22. Qxc2 {[%clk
0:01:45.1]} 22... h4 {[%clk 0:02:15.4]} 23. Qc3 {[%clk 0:01:41.8]} 23... h3
{[%clk 0:02:10.7]} 24. g3 {[%clk 0:01:41.6]} 24... Ne5 {[%clk 0:02:07.9]} 25.
Rc1 {[%clk 0:01:37.3]} 25... Bg4 {[%clk 0:02:04.9]} 26. Bf1 {[%clk 0:01:37]}
26... Qf6 {[%clk 0:01:46.5]} 27. Qc2 {[%clk 0:01:34.9]} 27... Nf3+ {[%clk
0:01:41.4]} 28. Kh1 {[%clk 0:01:34.4]} 28... Kg7 {[%clk 0:01:42.3]} 29. a4
{[%clk 0:01:24.3]} 29... Ng5 {[%clk 0:01:38.2]} 30. Kg1 {[%clk 0:01:13.8]} 30...
Re5 {[%clk 0:01:32.3]} 31. Qb2 {[%clk 0:01:05.6]} 31... Rf5 {[%clk 0:01:02.1]}
32. Qxf6+ {[%clk 0:01:04.3]} 32... Kxf6 {[%clk 0:01:01.9]} 33. Rc2 {[%clk
0:00:54.9]} 33... Nf3+ {[%clk 0:01:00.6]} 34. Kh1 {[%clk 0:00:54.4]} 34... Ne1
{[%clk 0:01:00.5]} 35. Rd2 {[%clk 0:00:50.5]} 35... g5 {[%clk 0:00:41.7]} 36. a5
{[%clk 0:00:49]} 36... Bf3+ {[%clk 0:00:38.7]} 37. Kg1 {[%clk 0:00:48.4]} 37...
g4 {[%clk 0:00:38.8]} 38. Rd4 {[%clk 0:00:40.4]} 38... Rh5 {[%clk 0:00:33.9]}
39. Rc4 {[%clk 0:00:35]} 39... Rh8 {[%clk 0:00:27.6]} 40. Rc7 {[%clk 0:00:34.9]}
40... Bg2 {[%clk 0:00:27.1]} 41. Be2 {[%clk 0:00:28.6]} 41... Bf3 {[%clk
0:00:26.4]} 42. Bf1 {[%clk 0:00:28.6]} 42... Bd1 {[%clk 0:00:16.2]} 43. Rxb7
{[%clk 0:00:26.6]} 43... Nf3+ {[%clk 0:00:15.7]} 44. Kh1 {[%clk 0:00:27]} 44...
Bb3 {[%clk 0:00:14.7]} 45. Rc7 {[%clk 0:00:26.4]} 45... Nd2 {[%clk 0:00:13.1]}
46. Be2 {[%clk 0:00:25.6]} 46... Nf3 {[%clk 0:00:11.8]} 47. Rc6 {[%clk
0:00:24.2]} 47... Ke5 {[%clk 0:00:11.1]} 48. Bxa6 {[%clk 0:00:19.5]} 48... Bxd5
{[%clk 0:00:09.7]} 49. Nxd5 {[%clk 0:00:19.1]} 49... Kxd5 {[%clk 0:00:10.6]} 50.
Bb7 {[%clk 0:00:18.5]} 50... Rb8 {[%clk 0:00:09.8]} 51. Rc7+ {[%clk 0:00:17.2]}
51... Ke6 {[%clk 0:00:09.8]} 52. a6 {[%clk 0:00:17]} 52... Rd8 {[%clk
0:00:06.3]} 53. a7 {[%clk 0:00:17]} 53... Ne1 {[%clk 0:00:06.5]} 54. a8=Q {[%clk
0:00:16.2]} 54... Rxa8 {[%clk 0:00:06.8]} 55. Bxa8 {[%clk 0:00:16.4]} 55... Nd3
{[%clk 0:00:07.7]} 56. Kg1 {[%clk 0:00:14.1]} 56... f5 {[%clk 0:00:08.2]} 57. b5
{[%clk 0:00:13.5]} 57... d5 {[%clk 0:00:07.4]} 58. b6 {[%clk 0:00:13.7]} 58...
Kd6 {[%clk 0:00:07.9]} 59. Rc2 {[%clk 0:00:12.4]} 59... Nb4 {[%clk 0:00:06.1]}
60. b7 {[%clk 0:00:12.1]} 60... Na6 {[%clk 0:00:05.1]} 61. Rc8 {[%clk
0:00:10.7]} 1-0

[Event "*** Titled Tuesday Blitz"]
[Site "Chess.com"]
[Date "2021.02.02"]
[Round "9"]
[White "Artyom_ChessMate"]
[Black "Rsnr"]
[Result "0-1"]
[WhiteElo "2565"]
[BlackElo "2775"]
[TimeControl "180+1"]
[EndTime "11:47:14 PST"]
[Termination "Rsnr won by checkmate"]

1. e4 {[%clk 0:03:00.9]} 1... c6 {[%clk 0:03:00]} 2. d4 {[%clk 0:03:00.6]} 2...
d5 {[%clk 0:03:00.9]} 3. exd5 {[%clk 0:03:01.5]} 3... cxd5 {[%clk 0:03:01.8]} 4.
Bd3 {[%clk 0:03:01.9]} 4... Nc6 {[%clk 0:03:01.9]} 5. c3 {[%clk 0:03:02.2]} 5...
Qc7 {[%clk 0:03:02.6]} 6. Ne2 {[%clk 0:03:00.8]} 6... Bg4 {[%clk 0:03:02.5]} 7.
O-O {[%clk 0:03:00.4]} 7... e6 {[%clk 0:03:02.6]} 8. Qe1 {[%clk 0:03:00.8]} 8...
Nf6 {[%clk 0:03:02.8]} 9. f3 {[%clk 0:03:00.7]} 9... Bh5 {[%clk 0:03:03.4]} 10.
Qh4 {[%clk 0:02:59.9]} 10... h6 {[%clk 0:03:04]} 11. Ng3 {[%clk 0:02:41.3]}
11... Bg6 {[%clk 0:03:03.6]} 12. Bxg6 {[%clk 0:02:37]} 12... fxg6 {[%clk
0:03:04.5]} 13. Qh3 {[%clk 0:02:34.3]} 13... Kf7 {[%clk 0:03:04.5]} 14. Nd2
{[%clk 0:02:29]} 14... Bd6 {[%clk 0:03:03.5]} 15. f4 {[%clk 0:02:11.4]} 15...
Bxf4 {[%clk 0:03:03.3]} 16. Nf3 {[%clk 0:02:10.6]} 16... Bd6 {[%clk 0:02:59.3]}
17. Bd2 {[%clk 0:02:08.1]} 17... Rae8 {[%clk 0:02:59]} 18. Rae1 {[%clk
0:02:08.2]} 18... Rhf8 {[%clk 0:02:58.4]} 19. Ne5+ {[%clk 0:01:45.7]} 19... Kg8
{[%clk 0:02:16.6]} 20. Nxg6 {[%clk 0:01:44.2]} 20... Rf7 {[%clk 0:02:17.3]} 21.
Rxe6 {[%clk 0:01:43.3]} 21... Rxe6 {[%clk 0:01:04.1]} 22. Qxe6 {[%clk
0:01:41.5]} 22... Bxg3 {[%clk 0:01:04.7]} 23. hxg3 {[%clk 0:01:33.4]} 23... Qd7
{[%clk 0:01:05.4]} 24. Qxd7 {[%clk 0:01:20.6]} 24... Nxd7 {[%clk 0:01:05.1]} 25.
Re1 {[%clk 0:01:01.7]} 25... Nf6 {[%clk 0:00:54.5]} 26. Re6 {[%clk 0:00:44.5]}
26... Ne4 {[%clk 0:00:48]} 27. Bf4 {[%clk 0:00:43.9]} 27... Kh7 {[%clk
0:00:31.9]} 28. Ne5 {[%clk 0:00:38.9]} 28... Nxe5 {[%clk 0:00:31.9]} 29. Rxe5
{[%clk 0:00:39.8]} 29... g5 {[%clk 0:00:24.2]} 30. Be3 {[%clk 0:00:39.9]} 30...
Rd7 {[%clk 0:00:20.9]} 31. g4 {[%clk 0:00:30.3]} 31... Nf6 {[%clk 0:00:20.7]}
32. Re6 {[%clk 0:00:19.7]} 32... Nxg4 {[%clk 0:00:21.1]} 33. Bf2 {[%clk
0:00:19.4]} 33... Kg7 {[%clk 0:00:21.4]} 34. Bg3 {[%clk 0:00:19.1]} 34... Kf7
{[%clk 0:00:22]} 35. Re2 {[%clk 0:00:18.9]} 35... Nf6 {[%clk 0:00:20.8]} 36. Be5
{[%clk 0:00:16.5]} 36... Ng4 {[%clk 0:00:20.6]} 37. Re1 {[%clk 0:00:14.5]} 37...
Re7 {[%clk 0:00:20.3]} 38. Rf1+ {[%clk 0:00:14.6]} 38... Kg6 {[%clk 0:00:20.8]}
39. Rf8 {[%clk 0:00:14.2]} 39... Nxe5 {[%clk 0:00:20.2]} 40. dxe5 {[%clk
0:00:15.1]} 40... Rxe5 {[%clk 0:00:20.9]} 41. Rb8 {[%clk 0:00:15.2]} 41... Re7
{[%clk 0:00:21]} 42. Rd8 {[%clk 0:00:15.1]} 42... Kf5 {[%clk 0:00:18]} 43. Rxd5+
{[%clk 0:00:14.9]} 43... Ke4 {[%clk 0:00:18.7]} 44. Rd6 {[%clk 0:00:15.2]} 44...
h5 {[%clk 0:00:15.6]} 45. Kh2 {[%clk 0:00:15.2]} 45... Re5 {[%clk 0:00:11.9]}
46. Rd4+ {[%clk 0:00:14.5]} 46... Ke3 {[%clk 0:00:12.2]} 47. Kg3 {[%clk
0:00:15]} 47... a5 {[%clk 0:00:08.6]} 48. a4 {[%clk 0:00:12]} 48... Re4 {[%clk
0:00:07.3]} 49. Rd5 {[%clk 0:00:09.7]} 49... Rg4+ {[%clk 0:00:04.8]} 50. Kh2
{[%clk 0:00:09.8]} 50... Kf2 {[%clk 0:00:03.5]} 51. Rd2+ {[%clk 0:00:10]} 51...
Ke1 {[%clk 0:00:03.2]} 52. Rd5 {[%clk 0:00:09.9]} 52... b6 {[%clk 0:00:03.6]}
53. Rd6 {[%clk 0:00:08.8]} 53... Kf2 {[%clk 0:00:03.6]} 54. Rd2+ {[%clk
0:00:08.9]} 54... Ke3 {[%clk 0:00:03.8]} 55. Rd6 {[%clk 0:00:08.9]} 55... Kf2
{[%clk 0:00:04.5]} 56. Rd2+ {[%clk 0:00:08.9]} 56... Ke3 {[%clk 0:00:04.4]} 57.
Rd6 {[%clk 0:00:09]} 57... Rxa4 {[%clk 0:00:04.8]} 58. Rxb6 {[%clk 0:00:08.8]}
58... Kf2 {[%clk 0:00:05]} 59. Rb5 {[%clk 0:00:07.8]} 59... Rh4# {[%clk
0:00:05.1]} 0-1